bitfinex-derivatives/quotes_SOLF0:USTF0_20260129
["timestamp","ask_amount","ask_price","bid_price","bid_amount"]
[1769654807130,120.23922836,123.53,123.42,71.15976987]
[1769654808033,113.4981,123.53,123.42,71.15976987]
[1769654808531,7.2975,123.51,123.43,78.46166987]
[1769654810638,7.2981,123.5,123.43,71.15976987]
[1769654811243,113.4981,123.53,123.43,71.15976987]
[1769654812240,7.298,123.5,123.43,71.15976987]
[1769654815239,7.2987,123.49,123.43,71.15976987]
[1769654815544,120.26572836,123.5,123.41,71.23303288]
[1769654816741,7.2998,123.47,123.41,71.23303288]
[1769654817538,7.3003,123.46,123.38,7.3046]
[1769654817737,233.84172836,123.48,123.38,78.53763288]
[1769654818142,120.26572836,123.5,123.4,71.23303288]
[1769654818638,113.5342,123.49,123.4,71.23303288]
[1769654819442,113.5533,123.47,123.37,78.53833288]
[1769654820341,7.301,123.45,123.37,78.53833288]
[1769654820846,120.29022081,123.5,123.39,71.23303288]
[1769654821033,120.30932081,123.48,123.39,71.23303288]
[1769654821232,113.5524,123.47,123.39,71.23303288]
[1769654821438,7.3028,123.42,123.35,71.23303288]
[1769654821634,6.76262081,123.44,123.35,71.23303288]
[1769654821832,120.32522081,123.46,123.35,71.23303288]
[1769654822245,7.3018,123.44,123.36,7.3062]
[1769654822448,7.3018,123.44,123.37,71.23303288]
[1769654822838,7.3022,123.43,123.37,71.23303288]
[1769654823242,113.5745,123.45,123.37,71.23303288]
[1769654823545,7.3029,123.42,123.37,71.23303288]
[1769654824044,113.5745,123.45,123.35,7.3068]
[1769654824243,120.32522081,123.46,123.35,71.23303288]
[1769654824456,6.76262081,123.48,123.39,71.23303288]
[1769654824642,6.76262081,123.5,123.39,71.23303288]
[1769654824944,7.2992,123.48,123.39,78.53703288]
[1769654825146,6.76262081,123.47,123.39,71.23303288]
[1769654825347,120.31762081,123.47,123.39,71.23303288]
[1769654826440,7.3011,123.45,123.39,71.23303288]
[1769654827440,7.3017,123.44,123.36,71.23303288]
[1769654827644,113.5899,123.43,123.36,71.23303288]
[1769654828245,113.5899,123.43,123.32,71.23303288]
[1769654828451,7.3035,123.41,123.32,71.23303288]
[1769654828846,7.3046,123.39,123.32,71.23303288]
[1769654829042,113.6179,123.4,123.32,71.23303288]
[1769654829352,120.36332081,123.42,123.32,71.23303288]
[1769654829740,7.3043,123.4,123.32,71.23303288]
[1769654829941,113.5899,123.43,123.32,77.99565369]
[1769654830344,113.5899,123.43,123.32,71.23303288]
[1769654830550,113.6077,123.41,123.32,71.23303288]
[1769654831145,7.3047,123.39,123.32,71.23303288]
[1769654831852,7.3037,123.41,123.32,71.23303288]
[1769654832044,7.3037,123.41,123.32,77.99565369]
[1769654833150,120.38292081,123.4,123.29,71.23303288]
[1769654834251,113.6203,123.4,123.29,77.99565369]
[1769654834448,7.3055,123.38,123.31,71.23303288]
[1769654835557,7.3042,123.4,123.31,77.99565369]
[1769654835949,113.5989,123.42,123.31,77.99565369]
[1769654836349,113.5989,123.42,123.31,85.30485369]
[1769654836553,113.5899,123.43,123.31,77.99565369]
[1769654836856,7.3021,123.43,123.34,78.54043288]
[1769654837154,113.5825,123.44,123.34,71.23303288]
[1769654837359,6.76262081,123.43,123.34,71.23303288]
[1769654837653,113.5825,123.44,123.34,71.23303288]
[1769654837859,7.304,123.4,123.34,71.23303288]
[1769654838045,120.37112081,123.41,123.3,71.23303288]
[1769654838952,120.39072081,123.39,123.3,71.23303288]
[1769654839352,6.76262081,123.41,123.32,71.23303288]
[1769654839946,7.3051,123.38,123.32,71.23303288]
[1769654840357,120.37262081,123.41,123.32,71.23303288]
[1769654840765,7.3051,123.38,123.32,71.23303288]
[1769654841663,120.37262081,123.41,123.32,71.23303288]
[1769654841664,113.61,123.41,123.32,78.54163288]
[1769654841856,113.61,123.41,123.32,71.23303288]
[1769654842758,113.6019,123.42,123.32,71.23303288]
[1769654842964,113.5901,123.43,123.32,71.23303288]
[1769654843460,7.3039,123.4,123.33,78.54103288]
[1769654843652,120.36322081,123.42,123.33,78.54103288]
[1769654843862,113.6076,123.41,123.33,71.23303288]
[1769654844055,7.3051,123.38,123.33,71.23303288]
[1769654845068,7.3051,123.38,123.3,78.54283288]
[1769654846059,7.3058,123.37,123.3,71.23303288]
[1769654846760,7.3058,123.37,123.3,78.54283288]
[1769654847859,7.3058,123.37,123.3,71.23303288]
[1769654848356,0.07176411,123.36,123.28,403.92056052]
[1769654848556,0.07176411,123.36,123.29,71.24638532]
[1769654849056,7.3075,123.34,123.29,71.24638532]
[1769654850170,113.6487,123.37,123.28,80.24056052]
[1769654851157,113.71788417,123.37,123.28,80.24056052]
[1769654851464,7.3074,123.34,123.28,80.24056052]
[1769654853750,7.3068,123.36,123.28,80.24056052]
[1769654853954,113.71788417,123.37,123.28,80.24056052]
[1769654855466,7.3069,123.35,123.28,80.24056052]
[1769654856061,7.3075,123.34,123.28,80.24056052]
[1769654856762,7.37748417,123.33,123.28,8.9941752]
[1769654857064,0.06918417,123.33,123.28,8.9941752]
[1769654857260,113.72828417,123.36,123.28,80.24056052]
[1769654857965,7.3081,123.33,123.28,80.24056052]
[1769654858164,0.06918417,123.35,123.28,80.24056052]
[1769654858960,7.3078,123.34,123.28,80.24056052]
[1769654860465,7.3078,123.34,123.28,87.55156052]
[1769654861272,113.68628417,123.4,123.3,71.24638532]
[1769654861572,6.23029174,123.39,123.3,71.24638532]
[1769654862267,6.29947591,123.39,123.3,71.24638532]
[1769654862471,7.3057,123.37,123.3,78.55618532]
[1769654862972,7.3057,123.37,123.32,71.24638532]
[1769654863169,7.305,123.39,123.32,71.24638532]
[1769654863571,7.305,123.39,123.33,78.55428532]
[1769654863872,7.45691915,123.44,123.33,78.00900613]
[1769654864073,6.24054806,123.43,123.33,78.00900613]
[1769654864274,6.24054806,123.42,123.33,78.00900613]
[1769654864476,13.54384806,123.41,123.35,7.3065]
[1769654864669,6.24054806,123.4,123.35,78.55288532]
[1769654864977,6.24054806,123.4,123.32,71.24638532]
[1769654865181,6.24054806,123.39,123.32,71.24638532]
[1769654865472,13.54584806,123.38,123.32,71.24638532]
[1769654865673,7.3053,123.38,123.32,71.24638532]
[1769654866572,0.06918417,123.38,123.29,395.06638532]
[1769654866774,6.3169271,123.38,123.3,71.24638532]
[1769654867072,6.24774293,123.38,123.3,71.24638532]
[1769654867272,7.3051,123.38,123.3,71.24638532]
[1769654867575,7.3051,123.38,123.3,78.00900613]
[1769654867772,7.3069,123.35,123.3,71.24638532]
[1769654867976,0.06918417,123.36,123.28,80.24056052]
[1769654868276,7.3083,123.33,123.28,80.24056052]
[1769654869770,7.3074,123.35,123.28,80.24056052]
[1769654869970,113.72608417,123.36,123.28,80.24056052]
[1769654870171,6.25256065,123.35,123.28,80.24056052]
[1769654871578,7.3086,123.32,123.28,80.24056052]
[1769654872577,113.6729,123.34,123.28,55.57256052]
[1769654872776,6.25596346,123.33,123.28,55.57256052]
[1769654872965,7.37718417,123.35,123.28,55.57256052]
[1769654873577,113.6567,123.36,123.28,55.57256052]
[1769654873778,6.25797583,123.35,123.28,62.33518133]
[1769654873977,136.69740897,123.37,123.28,62.33518133]
[1769654874281,6.25837731,123.36,123.28,62.33518133]
[1769654874876,13.56517731,123.36,123.28,62.33518133]
[1769654875076,6.25837731,123.35,123.28,62.33518133]
[1769654875677,6.25837731,123.35,123.28,69.64618133]
[1769654877486,13.56537731,123.35,123.28,69.64618133]
[1769654877677,7.307,123.35,123.28,55.57256052]
[1769654878173,6.26220931,123.34,123.28,55.57256052]
[1769654879484,7.3075,123.34,123.28,55.57256052]
[1769654881179,7.3082,123.33,123.28,55.57256052]
[1769654881380,6.23917983,123.32,123.28,55.57256052]
[1769654881679,7.3089,123.32,123.28,55.57256052]
[1769654883480,7.3089,123.32,123.25,74.52789552]
[1769654883789,7.3089,123.32,123.25,81.30216265]
[1769654883982,7.3095,123.31,123.25,67.21519552]
[1769654884587,7.3095,123.31,123.25,74.52789552]
[1769654884892,7.3083,123.33,123.25,74.52789552]
[1769654885394,7.3083,123.33,123.27,67.21519552]
[1769654886088,7.3075,123.34,123.27,67.21519552]
[1769654886284,260.38,123.38,123.29,67.21519552]
[1769654886491,6.24125986,123.37,123.29,67.21519552]
[1769654886690,7.3056,123.38,123.29,67.21519552]
[1769654886989,6.24102882,123.37,123.3,6.77426713]
[1769654887195,7.3045,123.39,123.33,67.21519552]
[1769654887785,23.07985003,123.41,123.33,67.21519552]
[1769654889294,7.3039,123.4,123.33,67.21519552]
[1769654890086,7.3039,123.4,123.33,74.52319552]
[1769654890490,7.3045,123.39,123.33,67.21519552]
[1769654891384,30.38365003,123.41,123.33,74.52319552]
[1769654891692,25.60693235,123.41,123.34,2.52708232]
[1769654892283,25.60693235,123.41,123.33,74.52319552]
[1769654892480,23.07985003,123.41,123.34,2.52708232]
[1769654893196,7.3039,123.4,123.34,77.04967784]
[1769654893492,7.3039,123.4,123.36,2.52708232]
[1769654893695,23.07985003,123.41,123.36,2.52708232]
[1769654893887,30.38325003,123.41,123.36,2.52708232]
[1769654894193,23.07985003,123.41,123.36,2.52708232]
[1769654895694,23.07985003,123.41,123.34,74.52239552]
[1769654896795,30.38325003,123.41,123.34,67.21519552]
[1769654898198,23.07985003,123.41,123.34,67.21519552]
[1769654898786,29.32087885,123.39,123.32,67.21519552]
[1769654899189,6.20564896,123.38,123.32,67.21519552]
[1769654899592,7.3058,123.37,123.32,67.21519552]
[1769654900688,29.32087885,123.39,123.32,67.21519552]
[1769654901398,7.3051,123.38,123.32,67.21519552]
[1769654901601,29.32087885,123.39,123.32,67.21519552]
[1769654902599,29.32087885,123.38,123.32,67.21519552]
[1769654904198,7.3063,123.36,123.32,67.21519552]
[1769654904803,7.3055,123.38,123.32,67.21519552]
[1769654905100,142.94127885,123.4,123.32,73.98241624]
[1769654906299,7.3057,123.37,123.32,73.98241624]
[1769654906702,113.6107,123.41,123.32,73.98241624]
[1769654907010,113.6178,123.4,123.32,73.98241624]
[1769654907901,36.60095841,123.39,123.32,73.98241624]
[1769654908104,150.22945841,123.39,123.32,73.98241624]
[1769654908303,150.22945841,123.39,123.32,67.21519552]
[1769654908699,7.3063,123.36,123.32,67.21519552]
[1769654908900,150.22945841,123.39,123.32,67.21519552]
[1769654909600,113.6285,123.39,123.32,67.21519552]
[1769654909999,412.49324841,123.41,123.32,73.98241624]
[1769654910402,150.27324841,123.41,123.32,73.98241624]
[1769654910702,6.2052044,123.4,123.34,73.3279089]
[1769654910902,300.12254841,123.43,123.34,73.3279089]
[1769654911104,6.20571881,123.42,123.34,73.3279089]
[1769654912100,36.66254841,123.45,123.38,73.3279089]
[1769654912900,150.23544841,123.45,123.38,73.3279089]
[1769654914408,113.5895,123.43,123.36,66.56068818]
[1769654914710,56.68164841,123.41,123.33,315.96]
[1769654915007,56.68164841,123.41,123.32,6.76722072]
[1769654915306,170.29914841,123.4,123.32,6.76722072]
[1769654915604,170.29914841,123.4,123.3,14.07702072]
[1769654916410,170.30084841,123.4,123.3,6.76722072]
[1769654916606,170.30084841,123.4,123.31,66.56068818]
[1769654917110,56.68164841,123.39,123.31,66.56068818]
[1769654917614,56.68164841,123.39,123.33,2.52767974]
[1769654917800,7.3063,123.36,123.33,7.974e-05]
[1769654918000,7.3063,123.36,123.26,113.7365]
[1769654918001,67.03276418,123.35,123.29,2.52767974]
[1769654918209,180.69796418,123.35,123.28,2.52767974]
[1769654918403,180.69796418,123.35,123.21,380.4755]
[1769654918404,74.34216418,123.31,123.21,152.9]
[1769654918604,67.03276418,123.3,123.21,152.9]
[1769654918806,67.03276418,123.3,123.23,2.52767974]
[1769654919010,7.3106,123.29,123.23,2.52767974]
[1769654919503,7.3096,123.31,123.25,2.52767974]
[1769654919903,74.34166418,123.32,123.25,2.52767974]
[1769654921108,7.3078,123.34,123.27,69.08836792]
[1769654921314,7.3078,123.34,123.29,2.52767974]
[1769654921506,7.3078,123.34,123.27,66.56068818]
[1769654922112,67.03276418,123.33,123.24,73.33493285]
[1769654922907,7.3096,123.31,123.24,73.33493285]
[1769654923108,67.03276418,123.33,123.24,73.33493285]
[1769654923308,448.27776418,123.35,123.24,73.33493285]
[1769654923511,67.03276418,123.34,123.26,73.33493285]
[1769654924120,7.3088,123.32,123.26,73.33493285]
[1769654927012,7.3088,123.32,123.24,7.3131]
[1769654927013,7.3079,123.34,123.28,73.33493285]
[1769654927213,336.29276418,123.37,123.28,73.33493285]
[1769654927418,113.6463,123.37,123.31,66.56068818]
[1769654927619,186.84965054,123.36,123.28,73.33493285]
[1769654927821,180.68916418,123.36,123.28,73.33493285]
[1769654928428,7.3077,123.34,123.28,73.33493285]
[1769654928627,67.03276418,123.35,123.28,66.56068818]
[1769654928929,113.6564,123.36,123.28,73.33493285]
[1769654929229,180.68916418,123.36,123.28,73.33493285]
[1769654929424,7.3081,123.33,123.28,66.56068818]
[1769654930422,180.70836418,123.34,123.26,6.77424467]
[1769654930627,67.03276418,123.32,123.25,66.56068818]
[1769654932333,7.3094,123.31,123.25,66.56068818]
[1769654935735,67.93732857,123.31,123.22,82.70664846]
[1769654936336,67.93732857,123.3,123.22,68.61800379]
[1769654936631,67.93732857,123.29,123.22,68.61800379]
[1769654938335,7.3117,123.27,123.2,75.93320379]
[1769654938538,67.93732857,123.27,123.19,6.77424467]
[1769654938733,67.93732857,123.3,123.24,6.77424467]
[1769654938927,7.3099,123.3,123.24,75.39224846]
[1769654939131,7.3099,123.3,123.23,7.3139]
[1769654939132,75.24722857,123.3,123.23,7.3139]
[1769654939329,67.93732857,123.26,123.16,68.61800379]
[1769654939528,272.72,123.29,123.22,68.61800379]
[1769654939730,113.6898,123.33,123.23,75.39224846]
[1769654939935,386.4806,123.34,123.26,68.61800379]
[1769654940136,75.24652857,123.31,123.25,6.77424467]
[1769654940333,454.41792857,123.34,123.24,75.39224846]
[1769654940537,454.67792857,123.34,123.26,6.77424467]
[1769654940733,67.93732857,123.33,123.26,6.77424467]
[1769654940934,67.93732857,123.33,123.23,6.77424467]
[1769654940935,67.93732857,123.31,123.23,6.77424467]
[1769654941240,67.93732857,123.31,123.19,6.77424467]
[1769654941241,75.24962857,123.26,123.19,6.77424467]
[1769654941440,67.93732857,123.25,123.18,68.61800379]
[1769654941636,67.93732857,123.25,123.15,211.8385]
[1769654941637,387.2937,123.28,123.19,75.40274859]
[1769654941836,75.24802857,123.29,123.22,68.61800379]
[1769654942036,387.4461,123.31,123.23,75.40274859]
[1769654942234,455.38342857,123.31,123.23,68.61800379]
[1769654942441,7.3107,123.29,123.23,68.61800379]
[1769654942642,181.66882857,123.28,123.2,75.40274859]
[1769654942844,75.24862857,123.28,123.2,75.40274859]
[1769654943234,1.41185062,123.34,123.23,68.61800379]
[1769654943439,7.3084,123.33,123.25,75.40274859]
[1769654945037,7.307,123.35,123.28,68.61800379]
[1769654945447,7.3047,123.39,123.31,75.40274859]
[1769654946549,67.93732857,123.4,123.31,75.40274859]
[1769654947048,67.93732857,123.37,123.28,68.61800379]
[1769654948342,67.93732857,123.33,123.23,7.3138]
[1769654948552,67.93732857,123.32,123.22,75.40274859]
[1769654948849,75.24622857,123.32,123.22,75.40274859]
[1769654949146,67.93732857,123.32,123.24,75.40274859]
[1769654949649,349.90442857,123.35,123.24,82.71564859]
[1769654950340,281.9671,123.35,123.26,75.40274859]
[1769654950540,181.57572857,123.38,123.28,75.40274859]
[1769654951139,75.24272857,123.38,123.28,75.40274859]
[1769654951540,7.3042,123.4,123.32,6.7847448]
[1769654951746,7.3042,123.4,123.32,75.40274859]
[1769654952051,113.6172,123.4,123.32,68.61800379]
[1769654953147,7.3048,123.39,123.32,68.61800379]
[1769654953848,181.54742857,123.41,123.32,68.61800379]
[1769654953849,75.24092857,123.41,123.32,68.61800379]
[1769654954050,67.93732857,123.41,123.32,68.61800379]
[1769654954248,7.3048,123.39,123.32,68.61800379]
[1769654954446,75.24212857,123.39,123.29,75.40274859]
[1769654954648,7.3048,123.39,123.32,68.61800379]
[1769654955755,181.53992857,123.42,123.32,68.61800379]
[1769654955957,6.11688528,123.41,123.32,68.61800379]
[1769654956155,74.05421385,123.41,123.32,68.61800379]
[1769654956349,6.11655256,123.4,123.32,68.61800379]
[1769654956750,67.93732857,123.41,123.32,68.61800379]
[1769654957459,7.304,123.4,123.32,68.61800379]
[1769654957650,7.304,123.4,123.32,75.92640379]
[1769654957855,7.304,123.4,123.33,75.40274859]
[1769654958251,7.304,123.4,123.33,68.61800379]
[1769654959755,67.93732857,123.41,123.33,68.61800379]
[1769654959756,7.3046,123.39,123.33,68.61800379]
[1769654961264,7.3054,123.38,123.33,68.61800379]
[1769654961962,7.3058,123.37,123.3,82.71204859]
[1769654962155,7.3058,123.37,123.27,68.61800379]
[1769654962156,67.93732857,123.36,123.27,68.61800379]
[1769654962461,181.59312857,123.36,123.27,68.61800379]
[1769654963265,67.93732857,123.35,123.27,68.61800379]
[1769654963664,67.93732857,123.35,123.22,113.7753]
[1769654963665,67.93732857,123.33,123.24,68.61800379]
[1769654963862,181.62122857,123.33,123.24,68.61800379]
[1769654964157,7.3099,123.3,123.24,68.61800379]
[1769654965461,7.3105,123.29,123.24,68.61800379]
[1769654966759,181.63012857,123.32,123.24,68.61800379]
[1769654966760,7.3097,123.31,123.24,68.61800379]
[1769654967062,67.93732857,123.32,123.24,68.61800379]
[1769654968455,67.93732857,123.32,123.22,64.26446899]
[1769654968651,74.92624036,123.31,123.22,64.26446899]
[1769654968861,68.79671908,123.31,123.22,64.26446899]
[1769654969057,7.3111,123.28,123.22,64.26446899]
[1769654969563,68.79768345,123.32,123.22,64.26446899]
[1769654969957,76.10658345,123.32,123.23,72.03364343]
[1769654970561,7.3079,123.34,123.25,71.50468823]
[1769654971064,7.3079,123.34,123.28,64.71994343]
[1769654972654,7.3081,123.33,123.26,7.312]
[1769654972859,7.3081,123.33,123.25,64.71994343]
[1769654973163,68.79768345,123.33,123.25,64.71994343]
[1769654974366,7.3093,123.31,123.25,64.71994343]
[1769654974769,68.79768345,123.33,123.25,64.71994343]
[1769654974973,7.3087,123.32,123.25,64.71994343]
[1769654976867,7.3093,123.31,123.25,64.71994343]
[1769654977067,68.79768345,123.33,123.25,64.71994343]
[1769654977769,113.6659,123.35,123.25,72.03264343]
[1769654977962,6.13391461,123.34,123.25,72.03264343]
[1769654978161,182.47938345,123.33,123.25,64.71994343]
[1769654978467,7.3098,123.3,123.25,64.71994343]
[1769654978663,182.49098345,123.32,123.22,71.50468823]
[1769654978869,182.49098345,123.32,123.22,64.71994343]
[1769654979066,6.1324761,123.31,123.22,64.71994343]
[1769654979465,7.3105,123.29,123.22,72.03444343]
[1769654982873,7.3098,123.3,123.22,78.81918823]
[1769654983372,182.49098345,123.32,123.22,78.81918823]
[1769654983869,7.3124,123.26,123.17,72.03724343]
[1769654984069,7.3124,123.26,123.17,64.71994343]
[1769654984070,68.79768345,123.26,123.17,64.71994343]
[1769654984267,68.79768345,123.25,123.14,71.50468823]
[1769654984463,68.79768345,123.25,123.17,72.03724343]
[1769654984767,7.3126,123.26,123.17,72.03724343]
[1769654985172,7.313,123.25,123.17,72.03724343]
[1769654985676,68.79768345,123.27,123.19,64.71994343]
[1769654986073,76.10958345,123.27,123.19,64.71994343]
[1769654986378,68.79768345,123.27,123.19,64.71994343]
[1769654987479,7.3123,123.26,123.19,64.71994343]
[1769654989972,7.3113,123.28,123.21,64.71994343]
[1769654990570,7.3117,123.27,123.21,64.71994343]
[1769654990967,68.79768345,123.29,123.21,64.71994343]
[1769654991172,7.3111,123.28,123.21,71.50468823]
[1769654991368,68.79768345,123.29,123.21,64.71994343]
[1769654991571,182.53148345,123.28,123.21,64.71994343]
[1769654991889,68.79768345,123.28,123.21,64.71994343]
[1769654993280,7.3117,123.27,123.21,64.71994343]
[1769654994079,7.3128,123.25,123.18,72.03644343]
[1769654994275,68.79768345,123.26,123.18,64.71994343]
[1769654994784,7.3148,123.22,123.15,72.03834343]
[1769654995184,7.3148,123.22,123.15,64.71994343]
[1769654996284,7.3148,123.22,123.16,77.54062249]
[1769654996479,7.3148,123.22,123.16,70.22252249]
[1769654996878,7.3152,123.21,123.16,70.22252249]
[1769654997979,7.3147,123.22,123.16,70.22252249]
[1769654998286,181.69434739,123.27,123.18,6.7847448]
[1769654998482,181.69434739,123.27,123.19,70.22252249]
[1769654998680,7.3128,123.25,123.19,70.22252249]
[1769654999180,67.95524739,123.27,123.19,77.53882249]
[1769654999382,7.3124,123.26,123.19,77.53882249]
[1769654999579,7.3124,123.26,123.19,70.22252249]
[1769654999774,7.3124,123.26,123.19,77.53852249]
[1769654999978,7.3128,123.25,123.19,77.53852249]
[1769655000178,67.95524739,123.27,123.19,77.53852249]
[1769655000581,7.3128,123.25,123.19,77.53852249]
[1769655001084,7.3128,123.25,123.19,70.22252249]
[1769655002375,67.95524739,123.24,123.15,77.00584624]
[1769655002782,113.7499,123.26,123.15,77.00584624]
[1769655002987,21.40522375,123.29,123.18,70.22252249]
[1769655002988,345.71524739,123.29,123.18,70.22252249]
[1769655003288,67.95524739,123.28,123.18,70.22252249]
[1769655003480,7.3128,123.25,123.19,7.3162]
[1769655003682,67.95524739,123.26,123.18,70.22252249]
[1769655004083,67.95524739,123.28,123.18,70.22252249]
[1769655004384,113.7501,123.26,123.15,70.22252249]
[1769655004584,181.69634739,123.27,123.16,70.22252249]
[1769655004881,67.95524739,123.27,123.18,70.22252249]
[1769655005090,398.32542375,123.29,123.2,70.22252249]
[1769655005091,113.7221,123.29,123.2,70.22252249]
[1769655005279,181.67734739,123.29,123.2,70.22252249]
[1769655006185,74.11220859,123.28,123.2,70.22252249]
[1769655006386,13.46829734,123.27,123.2,70.22252249]
[1769655006686,7.3118,123.27,123.2,70.22252249]
[1769655007285,7.3123,123.26,123.2,70.22252249]
[1769655007990,67.95524739,123.27,123.2,70.22252249]
[1769655009291,13.47390636,123.26,123.2,70.22252249]
[1769655009490,7.3123,123.26,123.2,70.22252249]
[1769655009689,67.95524739,123.27,123.2,70.22252249]
[1769655011393,75.26694739,123.27,123.2,70.22252249]
[1769655011590,67.95524739,123.29,123.2,77.53792249]
[1769655011783,67.95524739,123.31,123.22,70.22252249]
[1769655011987,6.1612857,123.3,123.22,70.22252249]
[1769655012391,7.3107,123.29,123.22,70.22252249]
[1769655012893,6.16115344,123.28,123.22,70.22252249]
[1769655013095,7.3107,123.29,123.22,70.22252249]
[1769655013290,6.15999267,123.28,123.22,70.22252249]
[1769655014087,7.3107,123.29,123.22,70.22252249]
[1769655014283,74.11433171,123.28,123.2,70.22252249]
[1769655014489,74.11433171,123.27,123.2,70.22252249]
[1769655014696,6.15908432,123.26,123.2,70.22252249]
[1769655015397,13.47138432,123.26,123.2,70.22252249]
[1769655015697,7.3123,123.26,123.2,70.22252249]
[1769655015989,67.95524739,123.29,123.2,70.22252249]
[1769655016186,181.65754739,123.31,123.22,70.22252249]
[1769655016389,6.1655139,123.3,123.22,70.22252249]
[1769655017294,7.3105,123.29,123.22,77.53702249]
[1769655018496,13.47712052,123.28,123.22,70.22252249]
[1769655018698,7.3112,123.28,123.22,70.22252249]
[1769655019098,7.3112,123.28,123.22,77.53702249]
[1769655019593,7.3102,123.3,123.23,77.53632249]
[1769655020387,7.3106,123.29,123.23,77.53632249]
[1769655022295,7.311,123.28,123.23,70.22252249]
[1769655022491,67.95524739,123.28,123.2,70.22252249]
[1769655022799,74.12408465,123.27,123.18,70.22252249]
[1769655023093,7.3128,123.25,123.19,77.53832249]
[1769655024995,67.95524739,123.27,123.19,70.22252249]
[1769655025200,6.17367596,123.26,123.19,70.22252249]
[1769655025497,7.3135,123.24,123.19,70.22252249]
[1769655025804,67.95524739,123.27,123.19,70.22252249]
[1769655026101,6.17436386,123.26,123.19,70.22252249]
[1769655026401,13.48706386,123.26,123.19,77.00584624]
[1769655026602,68.78307039,123.29,123.19,77.00584624]
[1769655026900,74.95879118,123.28,123.21,70.25303834]
[1769655027100,6.17572079,123.27,123.21,70.25303834]
[1769655027497,74.95879118,123.27,123.17,70.25303834]
[1769655027702,7.314,123.23,123.17,70.25303834]
[1769655038495,68.77643511,123.21,123.12,65.47753261]
[1769655039096,68.77643511,123.21,123.11,113.8812]
[1769655039097,7.3153,123.21,123.13,72.79733261]
[1769655039301,68.77643511,123.23,123.13,65.47753261]
[1769655039503,6.15281683,123.22,123.13,65.47753261]
[1769655039699,2.53447087,123.2,123.11,65.47753261]
[1769655039900,2.53447087,123.2,123.13,65.47753261]
[1769655040107,2.53447087,123.2,123.13,68.01200348]
[1769655040498,9.85027087,123.2,123.13,68.01200348]
[1769655040698,9.85027087,123.2,123.14,68.01200348]
[1769655040910,71.31090598,123.21,123.14,65.47753261]
[1769655041204,71.31090598,123.21,123.14,68.01200348]
[1769655041806,71.31090598,123.21,123.14,65.47753261]
[1769655042002,71.31090598,123.21,123.14,68.01200348]
[1769655042211,68.77643511,123.18,123.1,65.47753261]
[1769655042410,71.31090598,123.21,123.14,2.53447087]
[1769655042598,234.91364827,123.25,123.17,68.01200348]
[1769655042599,68.77643511,123.23,123.17,68.01200348]
[1769655042805,68.77643511,123.25,123.19,2.53447087]
[1769655043109,182.48433511,123.31,123.22,68.01200348]
[1769655043316,6.15124917,123.3,123.24,65.47753261]
[1769655043510,6.15124917,123.3,123.25,2.53447087]
[1769655043805,182.46893511,123.32,123.24,65.47753261]
[1769655044013,6.15189813,123.31,123.24,65.47753261]
[1769655044312,7.31,123.3,123.24,65.47753261]
[1769655044707,68.77643511,123.3,123.21,65.47753261]
[1769655044900,6.14978919,123.29,123.21,65.47753261]
[1769655045105,13.46048919,123.29,123.21,65.47753261]
[1769655045407,182.46563511,123.33,123.23,65.47753261]
[1769655045605,182.46563511,123.33,123.22,6.77796999]
[1769655045606,6.15146922,123.32,123.25,65.47753261]
[1769655045803,68.77643511,123.36,123.27,65.47753261]
[1769655046008,6.15319306,123.35,123.27,65.47753261]
[1769655046208,68.77643511,123.36,123.27,65.47753261]
[1769655046209,76.08293511,123.36,123.27,65.47753261]
[1769655046405,394.2839,123.38,123.29,65.47753261]
[1769655046406,68.77643511,123.38,123.29,65.47753261]
[1769655046705,182.39363511,123.4,123.31,65.47753261]
[1769655046908,182.41273511,123.38,123.31,65.47753261]
[1769655047107,182.43053511,123.36,123.28,65.47753261]
[1769655047313,68.77643511,123.35,123.28,65.47753261]
[1769655047710,68.77643511,123.38,123.28,65.47753261]
[1769655047910,68.77643511,123.37,123.28,65.47753261]
[1769655048514,463.40603511,123.39,123.28,72.2555026]
[1769655048811,68.77643511,123.39,123.3,72.2555026]
[1769655049016,463.46383511,123.42,123.32,6.77796999]
[1769655049208,6.14182177,123.41,123.33,65.47753261]
[1769655049402,463.46383511,123.42,123.33,65.47753261]
[1769655049602,6.13502133,123.41,123.33,65.47753261]
[1769655049909,7.3037,123.41,123.33,65.47753261]
[1769655050612,76.08063511,123.4,123.33,65.47753261]
[1769655051210,7.3042,123.4,123.33,65.47753261]
[1769655052316,7.3049,123.39,123.33,65.47753261]
[1769655052512,394.681,123.42,123.33,65.47753261]
[1769655052513,281.08,123.42,123.33,65.47753261]
[1769655052718,182.38653511,123.41,123.33,65.47753261]
[1769655053219,182.40273511,123.39,123.3,65.47753261]
[1769655053816,189.70753511,123.39,123.3,65.47753261]
[1769655054813,76.08123511,123.39,123.3,65.47753261]